fUST/lending_fUST_20250401
["ID","MTS","AMOUNT","RATE_DAILY","PERIOD"]
[356969029,1743510662028,-1175.01,0.00020821,2]
[356969030,1743510662038,-1986.96,0.00020821,2]
[356969031,1743510662048,-665.82,0.00020821,2]
[356969032,1743510662058,-535.92,0.00020821,2]
[356969033,1743510662067,-500.0,0.00020821,2]
[356969034,1743510662078,-769.27,0.00020821,2]
[356969035,1743510662088,-503.02,0.00020821,2]
[356969036,1743510662098,-826.66,0.00020821,2]
[356969037,1743510662108,-505.42,0.00020821,2]
[356969038,1743510662118,-744.18,0.00020821,2]
[356969039,1743510662128,-842.38,0.00020821,2]
[356969040,1743510662138,-733.48,0.00020821,2]
[356969041,1743510662147,-751.48,0.00020821,2]
[356969042,1743510662158,-1885.83,0.00020821,2]
[356969043,1743510662167,-4092.43,0.00020821,2]
[356969044,1743510662177,-2922.51,0.00020821,2]
[356969045,1743510662187,-592.41,0.00020821,2]
[356969046,1743510662197,-500.0,0.00020821,2]
[356969047,1743510662207,-500.0,0.00020834,2]
[356969048,1743510662216,-558.19,0.00020892,2]
[356969049,1743510662228,-500.0,0.00020892,2]
[356969050,1743510662238,-500.0,0.00020892,2]
[356969051,1743510662248,-483.76,0.00020892,2]
[356969052,1743510662258,-500.0,0.00020895,2]
[356969053,1743510662268,-1051.12,0.00020895,2]
[356969054,1743510662277,-678.16,0.00020895,2]
[356969055,1743510662286,-481.2,0.000209,2]
[356969056,1743510662296,-1325.49,0.00020935,2]
[356969057,1743510662306,-12500.0,0.00020944,2]
[356969058,1743510662316,-12500.0,0.00020944,2]
[356969059,1743510662326,-12500.0,0.00020944,2]
[356969060,1743510662336,-162.47798432,0.00020999,2]
[356969061,1743510662345,-56412.12918459,0.00021,2]
[356969062,1743510662355,-3000.0,0.00021,2]
[356969063,1743510662363,-151.0,0.00021,2]
[356969064,1743510662373,-265.69148138,0.00021,2]
[356969065,1743510662383,-450.7064247,0.00021,2]
[356969066,1743510662392,-156.10328001,0.00021003,2]
[356969067,1743510662401,-3000.0,0.0002101,2]
[356969068,1743510662411,-3000.0,0.0002102,2]
[356969069,1743510662420,-3000.0,0.0002103,2]
[356969070,1743510662430,-3000.0,0.0002104,2]
[356969071,1743510662439,-3000.0,0.0002105,2]
[356969072,1743510662448,-3000.0,0.0002106,2]
[356969073,1743510662459,-156.10328001,0.00021068,2]
[356969074,1743510662468,-3000.0,0.0002107,2]
[356969075,1743510662480,-3000.0,0.0002108,2]
[356969076,1743510662489,-3000.0,0.0002109,2]
[356969077,1743510662499,-293.75,0.00021095,2]
[356969078,1743510662509,-500.0,0.00021095,2]
[356969079,1743510662518,-5737.02,0.00021095,2]
[356969080,1743510662528,-1409.16,0.00021095,2]
[356969081,1743510662537,-916.33,0.00021095,2]
[356969082,1743510662547,-979.26,0.00021095,2]
[356969083,1743510662556,-582.09,0.00021095,2]
[356969084,1743510662635,-1721.92,0.00021095,2]
[356969085,1743510662645,-729.05,0.00021095,2]
[356969086,1743510662655,-3713.92,0.00021095,2]
[356969087,1743510662665,-1844.35,0.00021095,2]
[356969088,1743510662674,-778.77,0.00021095,2]
[356969089,1743510662684,-693.62,0.00021095,2]
[356969090,1743510662693,-382.65,0.00021095,2]
[356969091,1743510662702,-4905.13,0.00021095,2]
[356969092,1743510662712,-1706.19,0.00021095,2]
[356969093,1743510662725,-500.0,0.00021095,2]
[356969094,1743510662736,-500.0,0.00021095,2]
[356969095,1743510662745,-661.33,0.00021095,2]
[356969096,1743510662754,-1609.5,0.00021095,2]
[356969097,1743510662764,-1086.11,0.00021095,2]
[356969098,1743510662773,-1376.57,0.00021095,2]
[356969099,1743510662783,-525.22,0.00021095,2]
[356969100,1743510662793,-557.44,0.00021095,2]
[356969101,1743510662802,-1175.01,0.00021095,2]
[356969102,1743510662814,-1986.96,0.00021095,2]
[356969103,1743510662823,-665.82,0.00021095,2]
[356969104,1743510662833,-535.92,0.00021095,2]
[356969105,1743510662842,-500.0,0.00021095,2]
[356969106,1743510662853,-769.27,0.00021095,2]
[356969107,1743510662863,-826.66,0.00021095,2]
[356969108,1743510662873,-505.42,0.00021095,2]
[356969109,1743510662883,-744.18,0.00021095,2]
[356969110,1743510662892,-842.38,0.00021095,2]
[356969111,1743510662902,-733.48,0.00021095,2]
[356969112,1743510662912,-751.48,0.00021095,2]
[356969113,1743510662921,-1885.83,0.00021095,2]
[356969114,1743510662931,-4092.43,0.00021095,2]
[356969115,1743510662941,-2922.51,0.00021095,2]
[356969116,1743510662951,-592.41,0.00021095,2]
[356969117,1743510662960,-1000.0,0.000211,3]
[356969118,1743510662970,-3000.0,0.000211,2]
[356969119,1743510662981,-500.0,0.00021108,2]
[356969120,1743510662991,-3000.0,0.0002111,2]
[356969121,1743510663000,-3000.0,0.0002112,2]
[356969122,1743510663010,-3000.0,0.0002113,2]
[356969123,1743510663019,-209.545045,0.0002113,2]
[356969124,1743510663029,-156.10328001,0.00021133,2]
[356969125,1743510663039,-3000.0,0.0002114,2]
[356969126,1743510663049,-1068.91717646,0.00021141,3]
[356969127,1743510663058,-3000.0,0.0002115,2]
[356969128,1743510663068,-2347.797581,0.0002115,14]
[356969129,1743510663078,-3000.0,0.0002116,2]
[356969130,1743510663088,-558.19,0.00021166,2]
[356969131,1743510663098,-500.0,0.00021166,2]
[356969132,1743510663108,-500.0,0.00021166,2]
[356969133,1743510663118,-500.0,0.00021169,2]
[356969134,1743510663128,-1051.12,0.00021169,2]
[356969135,1743510663137,-678.16,0.00021169,2]
[356969136,1743510663147,-3000.0,0.0002117,2]
[356969137,1743510663157,-3000.0,0.0002118,2]
[356969138,1743510663167,-3000.0,0.0002119,2]
[356969139,1743510663177,-156.10328001,0.00021198,2]
[356969140,1743510663186,-3000.0,0.000212,2]
[356969141,1743510663196,-1325.49,0.00021209,2]
[356969142,1743510663205,-3165.252091,0.0002121,2]
[356969143,1743510663215,-502.14946396,0.00021222,2]
[356969144,1743510663225,-500.0,0.00021222,2]
[356969145,1743510663234,-417.86318513,0.00021222,2]
[356969146,1743510663243,-500.0,0.00021222,2]
[356969147,1743510663252,-500.0,0.00021222,2]
[356969148,1743510663262,-519.13792165,0.00021222,2]
[356969149,1743510663271,-500.17451954,0.00021222,2]
[356969150,1743510663280,-500.0,0.00021222,2]
[356969151,1743510663290,-500.0,0.00021222,2]
[356969152,1743510663300,-627.17108585,0.00021222,2]
[356969153,1743510663309,-614.49946437,0.00021222,2]
[356969154,1743510663319,-500.0,0.00021222,2]
[356969155,1743510663327,-500.0,0.00021222,2]
[356969156,1743510663337,-500.0,0.00021222,2]
[356969157,1743510663347,-500.0,0.00021222,2]
[356969158,1743510663356,-500.0,0.00021222,2]
[356969159,1743510663366,-500.0,0.00021222,2]
[356969160,1743510663376,-500.0,0.00021222,2]
[356969161,1743510663385,-500.0,0.00021222,2]
[356969162,1743510663395,-500.0,0.00021222,2]
[356969163,1743510663405,-500.0,0.00021222,2]
[356969164,1743510663415,-500.0,0.00021222,2]
[356969165,1743510663425,-2347.797581,0.00021252,14]
[356969166,1743510663436,-156.10328001,0.00021263,2]
[356969167,1743510663446,-156.10328001,0.00021328,2]
[356969168,1743510663455,-10362.73995921,0.00021336,2]
[356969169,1743510663465,-500.53138536,0.00021351,2]
[356969170,1743510663475,-526.34573582,0.00021351,2]
[356969171,1743510663485,-2347.797581,0.00021355,14]
[356969172,1743510663495,-500.0,0.00021369,2]
[356969173,1743510663504,-5737.02,0.00021369,2]
[356969174,1743510663515,-1409.16,0.00021369,2]
[356969175,1743510663525,-916.33,0.00021369,2]
[356969176,1743510663535,-979.26,0.00021369,2]
[356969177,1743510663546,-582.09,0.00021369,2]
[356969178,1743510663556,-1721.92,0.00021369,2]
[356969179,1743510663566,-729.05,0.00021369,2]
[356969180,1743510663576,-3713.92,0.00021369,2]
[356969181,1743510663586,-1844.35,0.00021369,2]
[356969182,1743510663597,-778.77,0.00021369,2]
[356969183,1743510663607,-693.62,0.00021369,2]
[356969184,1743510663617,-4905.13,0.00021369,2]
[356969185,1743510663627,-1706.19,0.00021369,2]
[356969186,1743510663636,-500.0,0.00021369,2]
[356969187,1743510663647,-500.0,0.00021369,2]
[356969188,1743510663657,-661.33,0.00021369,2]
[356969189,1743510663667,-1609.5,0.00021369,2]
[356969190,1743510663677,-1086.11,0.00021369,2]
[356969191,1743510663686,-1376.57,0.00021369,2]
[356969192,1743510663696,-525.22,0.00021369,2]
[356969193,1743510663707,-557.44,0.00021369,2]
[356969194,1743510663717,-1175.01,0.00021369,2]
[356969195,1743510663730,-1986.96,0.00021369,2]
[356969196,1743510663741,-665.82,0.00021369,2]
[356969197,1743510663821,-535.92,0.00021369,2]
[356969198,1743510663832,-500.0,0.00021369,2]
[356969199,1743510663843,-769.27,0.00021369,2]
[356969200,1743510663854,-826.66,0.00021369,2]
[356969201,1743510663865,-505.42,0.00021369,2]
[356969202,1743510663875,-744.18,0.00021369,2]
[356969203,1743510663886,-842.38,0.00021369,2]
[356969204,1743510663898,-733.48,0.00021369,2]
[356969205,1743510663909,-751.48,0.00021369,2]
[356969206,1743510663920,-1885.83,0.00021369,2]
[356969207,1743510663931,-4092.43,0.00021369,2]
[356969208,1743510663943,-2922.51,0.00021369,2]
[356969209,1743510663955,-592.41,0.00021369,2]
[356969210,1743510663965,-500.0,0.00021382,2]
[356969211,1743510663980,-156.10328001,0.00021393,2]
[356969212,1743510663990,-558.19,0.0002144,2]
[356969213,1743510664000,-500.0,0.0002144,2]
[356969214,1743510664011,-500.0,0.0002144,2]
[356969215,1743510664021,-500.0,0.00021443,2]
[356969216,1743510664031,-1051.12,0.00021443,2]
[356969217,1743510664042,-678.16,0.00021443,2]
[356969218,1743510664053,-156.112273,0.00021448,2]
[356969219,1743510664063,-2347.797581,0.00021458,14]
[356969220,1743510664074,-215.0738,0.00021461,2]
[356969221,1743510664084,-1325.49,0.00021483,2]
[356969222,1743510664094,-6000.0,0.000215,2]
[356969223,1743510664106,-500.0,0.00021516,2]
[356969224,1743510664116,-500.0,0.00021516,2]
[356969225,1743510664126,-500.0,0.00021516,2]
[356969226,1743510664136,-500.0,0.00021516,2]
[356969227,1743510664146,-596.468455,0.00021548,2]
[356969228,1743510664156,-2347.797581,0.0002156,14]
[356969229,1743510664167,-320.81,0.00021643,2]
[356969230,1743510664177,-5737.02,0.00021643,2]
[356969231,1743510664186,-1409.16,0.00021643,2]
[356969232,1743510664196,-916.33,0.00021643,2]
[356969233,1743510664206,-979.26,0.00021643,2]
[356969234,1743510664216,-582.09,0.00021643,2]
[356969235,1743510664227,-1721.92,0.00021643,2]
[356969236,1743510664238,-729.05,0.00021643,2]
[356969237,1743510664248,-3713.92,0.00021643,2]
[356969238,1743510664258,-1844.35,0.00021643,2]
[356969239,1743510664268,-778.77,0.00021643,2]
[356969240,1743510664279,-693.62,0.00021643,2]
[356969241,1743510664289,-4905.13,0.00021643,2]
[356969242,1743510664299,-1706.19,0.00021643,2]
[356969243,1743510664309,-500.0,0.00021643,2]
[356969244,1743510664320,-500.0,0.00021643,2]
[356969245,1743510664330,-661.33,0.00021643,2]
[356969246,1743510664340,-1609.5,0.00021643,2]
[356969247,1743510664349,-1086.11,0.00021643,2]
[356969248,1743510664359,-1376.57,0.00021643,2]
[356969249,1743510664373,-525.22,0.00021643,2]
[356969250,1743510664393,-557.44,0.00021643,2]
[356969251,1743510664410,-1175.01,0.00021643,2]
[356969252,1743510664431,-1986.96,0.00021643,2]
[356969253,1743510664451,-665.82,0.00021643,2]
[356969254,1743510664469,-535.92,0.00021643,2]
[356969255,1743510664488,-500.0,0.00021643,2]
[356969256,1743510664504,-769.27,0.00021643,2]
[356969257,1743510664523,-826.66,0.00021643,2]
[356969258,1743510664543,-505.42,0.00021643,2]
[356969259,1743510664563,-744.18,0.00021643,2]
[356969260,1743510664578,-842.38,0.00021643,2]
[356969261,1743510664597,-733.48,0.00021643,2]
[356969262,1743510664614,-751.48,0.00021643,2]
[356969263,1743510664631,-1885.83,0.00021643,2]
[356969264,1743510664646,-4092.43,0.00021643,2]
[356969265,1743510664662,-2922.51,0.00021643,2]
[356969266,1743510664678,-592.41,0.00021643,2]
[356969267,1743510664693,-500.0,0.00021656,2]
[356969268,1743510664708,-151.0,0.000217,4]
[356969269,1743510664727,-199287.47856507,0.000217,2]
[356969270,1743510664742,-558.19,0.00021714,2]
[356969271,1743510664758,-304.15,0.00021714,2]
[356969272,1743510664775,-500.0,0.00021714,2]
[356969273,1743510664790,-157.95079853,0.00021717,2]
[356969274,1743510664807,-1051.12,0.00021717,2]
[356969275,1743510664823,-678.16,0.00021717,2]
[356969276,1743510664838,-1325.49,0.00021757,2]
[356969277,1743510664853,-1068.91717646,0.00021797,3]
[356969278,1743510664870,-1000.0,0.000218,4]
[356969279,1743510664886,-1368.0,0.000219,2]
[356969280,1743510664902,-189.3,0.000219,120]
[356969281,1743510664917,-150.5,0.0002191,120]
[356969282,1743510664933,-505.34802476,0.00021917,2]
[356969283,1743510664948,-174.79259291,0.00021917,2]
[356969284,1743510664964,-5737.02,0.00021917,2]
[356969285,1743510664978,-1409.16,0.00021917,2]
[356969286,1743510664994,-916.33,0.00021917,2]
[356969287,1743510665010,-979.26,0.00021917,2]
[356969288,1743510665024,-582.09,0.00021917,2]
[356969289,1743510665040,-1721.92,0.00021917,2]
[356969290,1743510665056,-729.05,0.00021917,2]
[356969291,1743510665071,-3713.92,0.00021917,2]
[356969292,1743510665086,-1844.35,0.00021917,2]
[356969293,1743510665101,-778.77,0.00021917,2]
[356969294,1743510665117,-693.62,0.00021917,2]
[356969295,1743510665132,-4905.13,0.00021917,2]
[356969296,1743510665147,-1706.19,0.00021917,2]
[356969297,1743510665162,-500.0,0.00021917,2]
[356969298,1743510665178,-500.0,0.00021917,2]
[356969299,1743510665193,-661.33,0.00021917,2]
[356969300,1743510665208,-1609.5,0.00021917,2]
[356969301,1743510665314,-1086.11,0.00021917,2]
[356969302,1743510665324,-1376.57,0.00021917,2]
[356969303,1743510665334,-525.22,0.00021917,2]
[356969304,1743510665344,-557.44,0.00021917,2]
[356969305,1743510665354,-1175.01,0.00021917,2]
[356969306,1743510665364,-1986.96,0.00021917,2]
[356969307,1743510665374,-665.82,0.00021917,2]
[356969308,1743510665384,-535.92,0.00021917,2]
[356969309,1743510665394,-500.0,0.00021917,2]
[356969310,1743510665404,-769.27,0.00021917,2]
[356969311,1743510665414,-826.66,0.00021917,2]
[356969312,1743510665424,-505.42,0.00021917,2]
[356969313,1743510665434,-744.18,0.00021917,2]
[356969314,1743510665444,-842.38,0.00021917,2]
[356969315,1743510665454,-733.48,0.00021917,2]
[356969316,1743510665464,-751.48,0.00021917,2]
[356969317,1743510665474,-1885.83,0.00021917,2]
[356969318,1743510665484,-4092.43,0.00021917,2]
[356969319,1743510665495,-2922.51,0.00021917,2]
[356969320,1743510665505,-592.41,0.00021917,2]
[356969321,1743510665514,-500.0,0.0002193,2]
[356969322,1743510665524,-558.19,0.00021988,2]
[356969323,1743510665533,-491.85598837,0.00021988,2]
[356969324,1743510665543,-1051.12,0.00021991,2]
[356969325,1743510665553,-678.16,0.00021991,2]
[356969326,1743510665563,-11844.5,0.00022,14]
[356969327,1743510665572,-6000.0,0.00022,2]
[356969328,1743510665582,-6323.50384092,0.00022,2]
[356969329,1743510665592,-1325.49,0.00022031,2]
[356969330,1743510665602,-151.0,0.00022038,7]
[356969331,1743510665611,-151.0,0.00022038,7]
[356969332,1743510665621,-1000.0,0.00022052,2]
[356969333,1743510665631,-305.49890624,0.00022052,2]
[356969334,1743510665641,-1001.29809695,0.00022052,2]
[356969335,1743510665651,-1000.0,0.00022052,2]
[356969336,1743510665661,-1000.0,0.00022052,2]
[356969337,1743510665670,-2067.33042663,0.00022067,2]
[356969338,1743510665680,-5737.02,0.00022191,2]
[356969339,1743510665690,-1409.16,0.00022191,2]
[356969340,1743510665700,-916.33,0.00022191,2]
[356969341,1743510665709,-979.26,0.00022191,2]
[356969342,1743510665719,-582.09,0.00022191,2]
[356969343,1743510665731,-1721.92,0.00022191,2]
[356969344,1743510665742,-729.05,0.00022191,2]
[356969345,1743510665751,-3713.92,0.00022191,2]
[356969346,1743510665761,-1844.35,0.00022191,2]
[356969347,1743510665770,-778.77,0.00022191,2]
[356969348,1743510665782,-693.62,0.00022191,2]
[356969349,1743510665792,-4905.13,0.00022191,2]
[356969350,1743510665802,-1706.19,0.00022191,2]
[356969351,1743510665812,-500.0,0.00022191,2]
[356969352,1743510665823,-500.0,0.00022191,2]
[356969353,1743510665833,-661.33,0.00022191,2]
[356969354,1743510665844,-1609.5,0.00022191,2]
[356969355,1743510665854,-1086.11,0.00022191,2]
[356969356,1743510665863,-1376.57,0.00022191,2]
[356969357,1743510665873,-525.22,0.00022191,2]
[356969358,1743510665884,-557.44,0.00022191,2]
[356969359,1743510665895,-1175.01,0.00022191,2]
[356969360,1743510665905,-1986.96,0.00022191,2]
[356969361,1743510665914,-665.82,0.00022191,2]
[356969362,1743510665924,-535.92,0.00022191,2]
[356969363,1743510665934,-500.0,0.00022191,2]
[356969364,1743510665943,-769.27,0.00022191,2]
[356969365,1743510665953,-826.66,0.00022191,2]
[356969366,1743510665962,-744.18,0.00022191,2]
[356969367,1743510665972,-505.42,0.00022191,2]
[356969368,1743510665982,-842.38,0.00022191,2]
[356969369,1743510665992,-733.48,0.00022191,2]
[356969370,1743510666002,-751.48,0.00022191,2]
[356969371,1743510666012,-1885.83,0.00022191,2]
[356969372,1743510666021,-4092.43,0.00022191,2]
[356969373,1743510666031,-2922.51,0.00022191,2]
[356969374,1743510666041,-592.41,0.00022191,2]
[356969375,1743510666050,-105240.09725257,0.000222,2]
[356969376,1743510666060,-151.0,0.000222,7]
[356969377,1743510666069,-500.0,0.00022204,2]
[356969378,1743510666079,-1025.91870357,0.00022228,2]
[356969379,1743510666089,-399.92490546,0.00022252,2]
[356969380,1743510666098,-793.14232603,0.00022252,2]
[356969381,1743510666108,-1000.0,0.00022252,2]
[356969382,1743510666118,-1035.85557658,0.00022252,2]
[356969383,1743510666127,-1000.0,0.00022252,2]
[356969384,1743510666137,-502.38232948,0.00022252,2]
[356969385,1743510666147,-467.10113818,0.00022252,2]
[356969386,1743510666156,-455.82866095,0.00022252,2]
[356969387,1743510666166,-1000.0,0.00022252,2]
[356969388,1743510666176,-1000.0,0.00022252,2]
[356969389,1743510666186,-1006.87062219,0.00022252,2]
[356969390,1743510666196,-1000.0,0.00022252,2]
[356969391,1743510666206,-442.56995297,0.00022252,2]
[356969392,1743510666216,-1000.0,0.00022252,2]
[356969393,1743510666225,-1000.0,0.00022252,2]
[356969394,1743510666235,-1000.74973983,0.00022252,2]
[356969395,1743510666245,-1000.0,0.00022252,2]
[356969396,1743510666255,-1000.0,0.00022252,2]
[356969397,1743510666265,-1000.0,0.00022252,2]
[356969398,1743510666275,-1000.0,0.00022252,2]
[356969399,1743510666285,-1000.0,0.00022252,2]
[356969400,1743510666295,-1000.0,0.00022252,2]
[356969401,1743510666304,-1000.0,0.00022252,2]
[356969402,1743510666314,-1000.0,0.00022252,2]
[356969403,1743510666324,-1001.57502315,0.00022252,2]
[356969404,1743510666333,-506.83337907,0.00022252,2]
[356969405,1743510666343,-583.88688724,0.00022252,2]
[356969406,1743510666352,-558.19,0.00022262,2]
[356969407,1743510666362,-1051.12,0.00022265,2]
[356969408,1743510666371,-678.16,0.00022265,2]
[356969409,1743510666381,-488754.80312286,0.0002229,7]
[356969410,1743510666390,-160.0,0.0002229,7]
[356969411,1743510666399,-157.720129,0.0002229,7]
[356969412,1743510666408,-151.0,0.0002229,7]
[356969413,1743510666418,-151.0,0.0002229,7]
[356969414,1743510666428,-33575.07,0.000223,14]
[356969415,1743510666437,-29747.48,0.000223,14]
[356969416,1743510666446,-8657.28457932,0.000223,14]
[356969417,1743510668561,-930.39576144,0.00016274,2]
[356969418,1743510668572,-392.53038122,0.00016438,2]
[356969419,1743510669145,-151.0,0.00014358,2]
[356969420,1743510669172,-31.36224909,0.00014358,2]
[356969421,1743510676151,-183.87275965,0.00014357,2]
[356969422,1743510723063,-300.0,0.00014356,2]
[356969423,1743510724129,-234.13979126,0.00014357,2]
[356969426,1743510955464,237.82,0.00010959,2]
[356969427,1743510965990,198.18,0.00010959,2]
[356969428,1743510976511,165.15,0.00010959,2]
[356969429,1743510997799,825.8,0.00010959,2]
[356969505,1743511832088,-250.0,0.00014982,2]
[356969507,1743511832098,-199.02120964,0.00015003,2]
[356969509,1743511832108,-672.25512,0.00015103,2]
[356969511,1743511832121,-200.2416205,0.00015338,2]
[356969513,1743511832131,-300.0,0.00015429,2]
[356969515,1743511832141,-2761.1242623,0.0001543,2]
[356969517,1743511832151,-1649.6639542,0.0001543,2]
[356969519,1743511832161,-12216.26480357,0.000155,2]
[356969521,1743511832170,-443.48664417,0.00016337,2]
[356969523,1743511832180,-370000.0,0.00016338,2]
[356969525,1743511832190,-500.0,0.00016438,2]
[356969527,1743511832201,-500.0,0.00016438,2]
[356969529,1743511832211,-500.0,0.00016438,2]
[356969531,1743511832221,-500.0,0.00016438,2]
[356969533,1743511832231,-516.41960172,0.00016438,2]
[356969535,1743511832241,-500.0,0.00016438,2]
[356969537,1743511832250,-500.57479975,0.00016438,2]
[356969539,1743511832260,-500.0,0.00016438,2]
[356969541,1743511832270,-500.0,0.00016438,2]
[356969543,1743511832279,-500.0,0.00016438,2]
[356969545,1743511832289,-500.0,0.00016438,2]
[356969547,1743511832300,-537.47534139,0.00016438,2]
[356969549,1743511832309,-500.0,0.00016438,2]
[356969550,1743511832319,-500.0,0.00016438,2]
[356969551,1743511832328,-500.0,0.00016438,2]
[356969552,1743511832338,-500.0,0.00016438,2]
[356969553,1743511832347,-500.0,0.00016438,2]
[356969554,1743511832358,-546.79258272,0.00016438,2]
[356969555,1743511832367,-500.0,0.00016438,2]
[356969556,1743511832377,-500.0,0.00016438,2]
[356969557,1743511832386,-500.0,0.00016438,2]
[356969558,1743511832396,-500.0,0.00016438,2]
[356969559,1743511832406,-500.0,0.00016438,2]
[356969560,1743511832415,-500.0,0.00016438,2]
[356969561,1743511832424,-500.0,0.00016438,2]
[356969562,1743511832434,-500.0,0.00016438,2]
[356969563,1743511832444,-500.0,0.00016438,2]
[356969564,1743511832454,-500.0,0.00016438,2]
[356969565,1743511832463,-500.0,0.00016438,2]
[356969566,1743511832472,-500.0,0.00016438,2]
[356969567,1743511832483,-500.0,0.00016438,2]
[356969568,1743511832493,-500.0,0.00016438,2]
[356969569,1743511832503,-500.0,0.00016438,2]
[356969570,1743511832513,-559.76,0.00016438,2]
[356969571,1743511832523,-500.0,0.00016438,2]
[356969572,1743511832533,-500.0,0.00016438,2]
[356969573,1743511832544,-500.0,0.00016438,2]
[356969574,1743511832555,-812.55,0.00016438,2]
[356969575,1743511832566,-500.0,0.00016438,2]
[356969576,1743511832576,-785.36,0.00016438,2]
[356969577,1743511832588,-500.0,0.00016438,2]
[356969578,1743511832598,-500.0,0.00016438,2]
[356969579,1743511832608,-500.0,0.00016438,2]
[356969580,1743511832619,-500.0,0.00016438,2]
[356969581,1743511832630,-791.06,0.00016438,2]
[356969582,1743511832641,-500.0,0.00016438,2]
[356969583,1743511832651,-500.0,0.00016438,2]
[356969584,1743511832661,-500.0,0.00016438,2]
[356969585,1743511832670,-500.0,0.00016438,2]
[356969586,1743511832680,-500.0,0.00016438,2]
[356969587,1743511832689,-500.0,0.00016438,2]
[356969588,1743511832699,-466.63654285,0.00016438,2]
[356969589,1743511832708,-500.0,0.00016438,2]
[356969590,1743511832718,-223.48883716,0.00016438,2]
[356969591,1743511832727,-500.0,0.00016438,2]
[356969592,1743511832737,-500.0,0.00016438,2]
[356969593,1743511832747,-500.0,0.00016438,2]
[356969594,1743511832757,-500.0,0.00016438,2]
[356969595,1743511832766,-500.0,0.00016438,2]
[356969596,1743511832776,-1670.24,0.00016438,2]
[356969597,1743511832785,-500.0,0.00016438,2]
[356969598,1743511832794,-500.0,0.00016438,2]
[356969599,1743511832804,-500.0,0.00016438,2]
[356969600,1743511832813,-500.0,0.00016438,2]
[356969601,1743511832823,-500.0,0.00016438,2]
[356969602,1743511832832,-500.0,0.00016438,2]
[356969603,1743511832842,-500.0,0.00016438,2]
[356969604,1743511832851,-707.22,0.00016438,2]
[356969605,1743511832860,-500.0,0.00016438,2]
[356969606,1743511832871,-500.0,0.00016438,2]
[356969607,1743511832882,-500.0,0.00016438,2]
[356969608,1743511832893,-500.0,0.00016438,2]
[356969609,1743511832902,-500.0,0.00016438,2]
[356969610,1743511832912,-626.43444692,0.00016438,2]
[356969611,1743511832922,-500.0,0.00016438,2]
[356969612,1743511832931,-901.5,0.00016438,2]
[356969613,1743511832941,-500.0,0.00016438,2]
[356969614,1743511832950,-500.0,0.00016438,2]
[356969615,1743511832959,-864.64,0.00016438,2]
[356969616,1743511832970,-500.0,0.00016438,2]
[356969617,1743511832981,-619.0,0.00016438,2]
[356969618,1743511832990,-896.88,0.00016438,2]
[356969619,1743511833000,-500.0,0.00016438,2]
[356969620,1743511833010,-500.0,0.00016438,2]
[356969621,1743511833020,-1772.12,0.00016438,2]
[356969622,1743511833030,-500.0,0.00016438,2]
[356969623,1743511833039,-596.7,0.00016438,2]
[356969624,1743511833048,-500.0,0.00016438,2]
[356969625,1743511833058,-500.0,0.00016438,2]
[356969626,1743511833067,-500.0,0.00016438,2]
[356969627,1743511833077,-500.0,0.00016438,2]